fUST/lending_fUST_20240211
["ID","MTS","AMOUNT","RATE_DAILY","PERIOD"]
[313742762,1707654643434,-500.0,0.0002,2]
[313742764,1707654643443,-500.0,0.0002,2]
[313742766,1707654643452,-500.0,0.0002,2]
[313742767,1707654643461,-500.0,0.0002,2]
[313742768,1707654643470,-1000.0,0.0002,20]
[313742769,1707654643479,-152.22142136,0.0002,2]
[313742770,1707654643488,-717.12,0.0002,2]
[313742771,1707654643497,-500.0,0.0002,2]
[313742772,1707654643506,-691.62,0.0002,2]
[313742773,1707654643515,-500.0,0.0002,2]
[313742774,1707654643524,-500.0,0.0002,2]
[313742775,1707654643533,-500.0,0.0002,2]
[313742776,1707654643542,-1652.72,0.0002,2]
[313742777,1707654643551,-500.0,0.0002,2]
[313742778,1707654643560,-709.59,0.0002,2]
[313742779,1707654643569,-1565.32,0.0002,2]
[313742780,1707654643578,-1012.93,0.0002,2]
[313742781,1707654643587,-500.0,0.0002,2]
[313742782,1707654643596,-673.51,0.0002,2]
[313742783,1707654643605,-500.0,0.0002,2]
[313742784,1707654643614,-500.0,0.0002,2]
[313742785,1707654643623,-500.0,0.0002,2]
[313742786,1707654643632,-500.0,0.0002,2]
[313742787,1707654643641,-1286.27,0.0002,2]
[313742788,1707654643650,-1502.19,0.0002,2]
[313742790,1707654643658,-914.81,0.0002,2]
[313742792,1707654643667,-6321.15,0.0002,2]
[313742794,1707654643676,-1567.99,0.0002,2]
[313742796,1707654643685,-13471.07,0.0002,2]
[313742798,1707654643695,-7135.93,0.0002,2]
[313742800,1707654643704,-320.21505224,0.0002,2]
[313742802,1707654643713,-500.0,0.0002,2]
[313742805,1707654643722,-500.0,0.0002,2]
[313742807,1707654643732,-829.12,0.0002,2]
[313742820,1707654643850,-6226.0,0.0002,2]
[313742822,1707654643859,-500.0,0.0002,2]
[313742824,1707654643868,-1439.62,0.0002,2]
[313742826,1707654643878,-6133.25,0.0002,2]
[313742828,1707654643888,-500.0,0.0002,2]
[313742830,1707654643897,-500.0,0.0002,2]
[313742832,1707654643907,-773.34,0.0002,2]
[313742834,1707654643916,-6023.65,0.0002,2]
[313742836,1707654643925,-752.46,0.0002,2]
[313742838,1707654643935,-1058.67,0.0002,2]
[313742841,1707654643944,-579.65,0.0002,2]
[313742842,1707654643953,-3968.17,0.0002,2]
[313742845,1707654643963,-500.0,0.0002,2]
[313742847,1707654643972,-5352.7,0.0002,2]
[313742849,1707654643982,-500.0,0.0002,2]
[313742850,1707654643995,-811.55,0.0002,2]
[313742852,1707654644005,-1724.64,0.0002,2]
[313742854,1707654644014,-751.82,0.0002,2]
[313742857,1707654644023,-1673.43,0.0002,2]
[313742859,1707654644033,-25819.11776301,0.00020173,2]
[313742861,1707654644042,-5568.48,0.00020273,2]
[313742863,1707654644051,-530.33616563,0.00020273,2]
[313742864,1707654644060,-576.08204865,0.00020273,2]
[313742867,1707654644071,-500.0,0.00020273,2]
[313742869,1707654644081,-500.0,0.00020273,2]
[313742871,1707654644090,-500.0,0.00020273,2]
[313742873,1707654644100,-717.12,0.00020273,2]
[313742874,1707654644109,-500.0,0.00020273,2]
[313742876,1707654644118,-691.62,0.00020273,2]
[313742878,1707654644127,-500.0,0.00020273,2]
[313742880,1707654644136,-500.0,0.00020273,2]
[313742883,1707654644145,-500.0,0.00020273,2]
[313742885,1707654644154,-1652.72,0.00020273,2]
[313742887,1707654644164,-500.0,0.00020273,2]
[313742888,1707654644173,-709.59,0.00020273,2]
[313742890,1707654644183,-1565.32,0.00020273,2]
[313742892,1707654644191,-1012.93,0.00020273,2]
[313742894,1707654644201,-459.94857577,0.00020273,2]
[313742896,1707654644210,-673.51,0.00020273,2]
[313742899,1707654644219,-500.0,0.00020273,2]
[313742900,1707654644229,-500.0,0.00020273,2]
[313742902,1707654644238,-500.0,0.00020273,2]
[313742905,1707654644247,-500.0,0.00020273,2]
[313742907,1707654644257,-1286.27,0.00020273,2]
[313742908,1707654644267,-1502.19,0.00020273,2]
[313742910,1707654644276,-914.81,0.00020273,2]
[313742912,1707654644285,-6321.15,0.00020273,2]
[313742914,1707654644294,-1567.99,0.00020273,2]
[313742916,1707654644304,-13471.07,0.00020273,2]
[313742918,1707654644313,-7135.93,0.00020273,2]
[313742920,1707654644322,-500.0,0.00020273,2]
[313742922,1707654644331,-500.0,0.00020273,2]
[313742925,1707654644341,-829.12,0.00020273,2]
[313742927,1707654644351,-6226.0,0.00020273,2]
[313742929,1707654644360,-500.0,0.00020273,2]
[313742931,1707654644369,-1439.62,0.00020273,2]
[313742933,1707654644378,-6133.25,0.00020273,2]
[313742935,1707654644387,-500.0,0.00020273,2]
[313742937,1707654644395,-500.0,0.00020273,2]
[313742938,1707654644405,-773.34,0.00020273,2]
[313742940,1707654644415,-6023.65,0.00020273,2]
[313742942,1707654644424,-752.46,0.00020273,2]
[313742944,1707654644434,-1058.67,0.00020273,2]
[313742947,1707654644443,-579.65,0.00020273,2]
[313742948,1707654644452,-3968.17,0.00020273,2]
[313742951,1707654644462,-500.0,0.00020273,2]
[313742953,1707654644471,-5352.7,0.00020273,2]
[313742955,1707654644480,-500.0,0.00020273,2]
[313742956,1707654644489,-811.55,0.00020273,2]
[313742958,1707654644498,-1724.64,0.00020273,2]
[313742961,1707654644508,-751.82,0.00020273,2]
[313742963,1707654644517,-1673.43,0.00020273,2]
[313742965,1707654644526,-4121.53565151,0.00020473,2]
[313742967,1707654644543,-10003.91013348,0.00020473,2]
[313742971,1707654644568,-9440.81087819,0.00020473,2]
[313742994,1707654644771,-5446.80634017,0.00020473,2]
[313742996,1707654644782,-7521.29999994,0.00020473,2]
[313743009,1707654644892,-4988.0328273,0.00020473,2]
[313743011,1707654644903,-4714.99999999,0.00020473,2]
[313743013,1707654644915,-3762.60416942,0.00020473,2]
[313743015,1707654644924,-151.0,0.00020485,2]
[313743017,1707654644933,-5568.48,0.00020547,2]
[313743019,1707654644942,-500.0,0.00020547,2]
[313743021,1707654644951,-335.9752164,0.00020547,2]
[313743023,1707654644961,-500.0,0.00020547,2]
[313743025,1707654644971,-717.12,0.00020547,2]
[313743027,1707654644980,-500.0,0.00020547,2]
[313743029,1707654644992,-691.62,0.00020547,2]
[313743031,1707654645002,-500.0,0.00020547,2]
[313743033,1707654645011,-500.0,0.00020547,2]
[313743035,1707654645020,-500.0,0.00020547,2]
[313743037,1707654645030,-1652.72,0.00020547,2]
[313743039,1707654645039,-500.0,0.00020547,2]
[313743041,1707654645048,-709.59,0.00020547,2]
[313743043,1707654645058,-1012.93,0.00020547,2]
[313743045,1707654645069,-673.51,0.00020547,2]
[313743047,1707654645079,-515.7646202,0.00020547,2]
[313743049,1707654645088,-500.0,0.00020547,2]
[313743051,1707654645098,-500.0,0.00020547,2]
[313743053,1707654645107,-444.93656946,0.00020547,2]
[313743055,1707654645115,-1286.27,0.00020547,2]
[313743057,1707654645124,-1502.19,0.00020547,2]
[313743059,1707654645134,-914.81,0.00020547,2]
[313743061,1707654645143,-6321.15,0.00020547,2]
[313743063,1707654645152,-1567.99,0.00020547,2]
[313743065,1707654645162,-6137.63052429,0.00020547,2]
[313743087,1707654646473,-7333.43947571,0.00020547,2]
[313743089,1707654646484,-7135.93,0.00020547,2]
[313743091,1707654646493,-500.0,0.00020547,2]
[313743092,1707654646502,-500.0,0.00020547,2]
[313743093,1707654646511,-829.12,0.00020547,2]
[313743094,1707654646521,-1108.81991072,0.00020547,2]
[313743139,1707654649482,684.57537708,0.00010339,2]
[313743257,1707654673406,712.71004316,0.00010339,2]
[313743294,1707655832603,-154.90705577,0.00015985,2]
[313743296,1707655832613,-154.87609912,0.00015986,2]
[313743298,1707655832622,-719.00512275,0.00016,2]
[313743303,1707655832661,-692.04301699,0.00016,2]
[313743305,1707655832670,-273.40309853,0.00017368,2]
[313743307,1707655832679,-14692.1540357,0.00017369,2]
[313743309,1707655832688,-151.15,0.0001743,2]
[313743311,1707655832697,-248.857105,0.00017626,2]
[313743313,1707655832706,-1042.35451065,0.000189,2]
[313743315,1707655832716,-200.0,0.00019,2]
[313743317,1707655832725,-1000.0,0.00019,18]
[313743319,1707655832734,-224.66178879,0.00019077,2]
[313743321,1707655832744,-200.0,0.00019104,2]
[313743323,1707655832753,-82731.11116427,0.00019176,2]
[313743325,1707655832762,-2385.49508335,0.00019177,2]
[313743637,1707655838811,-5919.24976212,0.00019177,2]
[313743638,1707655838821,-526.71204991,0.00019178,2]
[313743639,1707655838830,-500.0,0.00019178,2]
[313743640,1707655838839,-601.51,0.00019178,2]
[313743641,1707655838849,-500.0,0.00019178,2]
[313743642,1707655838858,-500.0,0.00019178,2]
[313743643,1707655838867,-500.0,0.00019178,2]
[313743644,1707655838876,-500.0,0.00019178,2]
[313743645,1707655838886,-500.0,0.00019178,2]
[313743646,1707655838895,-500.0,0.00019178,2]
[313743647,1707655838904,-500.0,0.00019178,2]
[313743648,1707655838913,-1344.51,0.00019178,2]
[313743649,1707655838922,-500.0,0.00019178,2]
[313743650,1707655838931,-500.0,0.00019178,2]
[313743651,1707655838941,-1000.0,0.00019178,2]
[313743652,1707655838950,-500.0,0.00019178,2]
[313743653,1707655838959,-454.5514813,0.00019178,2]
[313743654,1707655838968,-500.0,0.00019178,2]
[313743655,1707655838977,-1239.21,0.00019178,2]
[313743656,1707655838986,-500.0,0.00019178,2]
[313743657,1707655838995,-1377.45,0.00019178,2]
[313743658,1707655839005,-1239.85,0.00019178,2]
[313743659,1707655839014,-783.48,0.00019178,2]
[313743660,1707655839023,-5030.83,0.00019178,2]
[313743661,1707655839033,-760.1,0.00019178,2]
[313743663,1707655839042,-500.0,0.00019178,2]
[313743664,1707655839051,-943.4,0.00019178,2]
[313743666,1707655839060,-1332.11,0.00019178,2]
[313743668,1707655839070,-500.0,0.00019178,2]
[313743669,1707655839080,-1004.44,0.00019178,2]
[313743670,1707655839089,-10654.56,0.00019178,2]
[313743672,1707655839098,-500.0,0.00019178,2]
[313743674,1707655839108,-5943.17,0.00019178,2]
[313743675,1707655839117,-5220.27,0.00019178,2]
[313743676,1707655839126,-500.0,0.00019178,2]
[313743677,1707655839136,-579.51,0.00019178,2]
[313743679,1707655839145,-500.0,0.00019178,2]
[313743681,1707655839155,-621.84,0.00019178,2]
[313743683,1707655839164,-500.0,0.00019178,2]
[313743685,1707655839174,-564.69782843,0.00019178,2]
[313743686,1707655839182,-5050.26,0.00019178,2]
[313743688,1707655839192,-616.53,0.00019178,2]
[313743689,1707655839201,-1202.79,0.00019178,2]
[313743690,1707655839211,-500.0,0.00019178,2]
[313743692,1707655839220,-500.0,0.00019178,2]
[313743693,1707655839230,-3276.0,0.00019178,2]
[313743694,1707655839239,-893.77,0.00019178,2]
[313743695,1707655839248,-5436.16,0.00019178,2]
[313743697,1707655839258,-4532.07,0.00019178,2]
[313743699,1707655839268,-963.11,0.00019178,2]
[313743700,1707655839279,-1405.18,0.00019178,2]
[313743702,1707655839288,-500.0,0.00019178,2]
[313743704,1707655839298,-560.38,0.00019178,2]
[313743706,1707655839308,-461.31217345,0.00019178,2]
[313743708,1707655839317,-663.31,0.00019178,2]
[313743711,1707655839328,-643.08,0.00019178,2]
[313743713,1707655839339,-168.236473,0.00019178,2]
[313743714,1707655839348,-500.0,0.00019452,2]
[313743717,1707655839358,-601.51,0.00019452,2]
[313743719,1707655839368,-500.0,0.00019452,2]
[313743720,1707655839378,-264.21032197,0.00019452,2]
[313743723,1707655839388,-500.0,0.00019452,2]
[313743724,1707655839397,-500.0,0.00019452,2]
[313743726,1707655839408,-500.0,0.00019452,2]
[313743729,1707655839417,-500.0,0.00019452,2]
[313743731,1707655839427,-500.0,0.00019452,2]
[313743733,1707655839436,-1344.51,0.00019452,2]
[313743735,1707655839445,-500.0,0.00019452,2]
[313743737,1707655839455,-1000.0,0.00019452,2]
[313743738,1707655839464,-500.0,0.00019452,2]
[313743740,1707655839473,-500.0,0.00019452,2]
[313743742,1707655839482,-1239.21,0.00019452,2]
[313743744,1707655839492,-500.0,0.00019452,2]
[313743746,1707655839501,-1377.45,0.00019452,2]
[313743748,1707655839510,-1239.85,0.00019452,2]
[313743750,1707655839519,-783.48,0.00019452,2]
[313743752,1707655839528,-4459.65886421,0.00019452,2]
[313743755,1707655839541,-571.17113579,0.00019452,2]
[313743757,1707655839550,-760.1,0.00019452,2]
[313743759,1707655839559,-500.0,0.00019452,2]
[313743761,1707655839568,-943.4,0.00019452,2]
[313743763,1707655839577,-1332.11,0.00019452,2]
[313743765,1707655839586,-500.0,0.00019452,2]
[313743767,1707655839595,-1004.44,0.00019452,2]
[313743769,1707655839604,-10654.56,0.00019452,2]
[313743771,1707655839613,-500.0,0.00019452,2]
[313743773,1707655839623,-5943.17,0.00019452,2]
[313743775,1707655839632,-5220.27,0.00019452,2]
[313743777,1707655839641,-500.0,0.00019452,2]
[313743779,1707655839650,-579.51,0.00019452,2]
[313743781,1707655839659,-500.0,0.00019452,2]
[313743783,1707655839669,-621.84,0.00019452,2]
[313743785,1707655839678,-500.0,0.00019452,2]
[313743787,1707655839687,-5050.26,0.00019452,2]
[313743789,1707655839696,-616.53,0.00019452,2]
[313743791,1707655839705,-1202.79,0.00019452,2]
[313743793,1707655839715,-500.0,0.00019452,2]
[313743794,1707655839724,-500.0,0.00019452,2]
[313743797,1707655839734,-3276.0,0.00019452,2]
[313743799,1707655839743,-893.77,0.00019452,2]
[313743801,1707655839753,-5436.16,0.00019452,2]
[313743803,1707655839763,-4532.07,0.00019452,2]
[313743805,1707655839772,-963.11,0.00019452,2]
[313743807,1707655839781,-1405.18,0.00019452,2]
[313743808,1707655839792,-500.0,0.00019452,2]
[313743810,1707655839802,-560.38,0.00019452,2]
[313743812,1707655839811,-663.31,0.00019452,2]
[313743814,1707655839820,-1115.58268575,0.000195,2]
[313743816,1707655839829,-621.01556369,0.00019661,2]
[313743818,1707655839838,-500.0,0.00019726,2]
[313743821,1707655839847,-601.51,0.00019726,2]
[313743823,1707655839857,-500.0,0.00019726,2]
[313743824,1707655839866,-435.89581068,0.00019726,2]
[313744106,1707655842636,-643.08,0.00019452,2]
[313744108,1707655842645,-64.10418932,0.00019726,2]
[313744110,1707655842655,-500.0,0.00019726,2]
[313744112,1707655842664,-500.0,0.00019726,2]
[313744114,1707655842673,-1344.51,0.00019726,2]
[313744116,1707655842682,-500.0,0.00019726,2]
[313744118,1707655842692,-500.0,0.00019726,2]
[313744120,1707655842701,-1239.21,0.00019726,2]
[313744122,1707655842710,-500.0,0.00019726,2]
[313744124,1707655842719,-1377.45,0.00019726,2]
[313744126,1707655842729,-1177.54496048,0.00019726,2]
[313744128,1707655842741,-62.30503952,0.00019726,2]
[313744130,1707655842750,-783.48,0.00019726,2]
[313744133,1707655842759,-1028.79496048,0.00019726,2]
[313744136,1707655842770,-626.05340804,0.00019726,2]
[313744235,1707655843645,-3375.98163148,0.00019726,2]
[313744237,1707655843654,-760.1,0.00019726,2]
[313744239,1707655843664,-500.0,0.00019726,2]
[313744241,1707655843674,-943.4,0.00019726,2]
[313744243,1707655843683,-1332.11,0.00019726,2]
[313744245,1707655843692,-500.0,0.00019726,2]
[313744247,1707655843701,-1004.44,0.00019726,2]
[313744250,1707655843710,-10654.56,0.00019726,2]
[313744253,1707655843719,-500.0,0.00019726,2]
[313744255,1707655843728,-5943.17,0.00019726,2]
[313744256,1707655843737,-701.43556641,0.00019726,2]
[313744263,1707655843789,-0.04740408,0.00019726,2]
[313744603,1707655846700,-685.54,0.00019178,2]
[313744605,1707655846709,-685.54,0.00019452,2]
[313744607,1707655846719,-4518.78702951,0.00019726,2]
[313744609,1707655846728,-500.0,0.00019726,2]
[313744611,1707655846736,-579.51,0.00019726,2]
[313744613,1707655846745,-500.0,0.00019726,2]
[313744615,1707655846755,-621.84,0.00019726,2]
[313744617,1707655846764,-500.0,0.00019726,2]
[313744619,1707655846773,-1071.58297049,0.00019726,2]
[313747263,1707656056438,154.90705577,0.00016309,3]
[313747264,1707656128945,154.90705577,0.00016309,3]
[313747265,1707656205439,154.90705577,0.00016309,3]
[313747267,1707656277984,154.90705577,0.00016309,3]
[313747275,1707656356467,154.90705577,0.00016309,3]
[313747277,1707656434975,154.90705577,0.00016309,3]
[313747279,1707656513488,154.90705577,0.00016309,3]
[313747280,1707656585998,154.90705577,0.00016309,3]
[313747281,1707656670523,154.90705577,0.00016309,3]
[313747282,1707656749279,154.92253873,0.00016309,3]
[313747283,1707656817544,154.92253873,0.00016309,3]
[313747284,1707656900070,154.92253873,0.00016309,3]
[313747300,1707656974577,154.92253873,0.00016309,3]
[313747316,1707657031753,-570.71840827,0.0001631,2]
[313747336,1707657037980,-829.31771081,0.0001631,2]
[313747386,1707657042872,-2912.36014008,0.0001631,2]
[313747388,1707657042882,-273.40309853,0.00017257,2]
[313747390,1707657042891,-154.92253873,0.00017258,3]
[313747392,1707657042899,-250.0,0.00017488,2]
[313747394,1707657042909,-6671.3606752,0.00017626,2]
[313747396,1707657042921,-138.93276482,0.00017626,2]
[313747397,1707657042930,-221.19300771,0.00017627,2]
[313747421,1707657045868,-1094.6,0.00017627,2]
[313747592,1707658238173,-537.66917544,0.00012892,2]
[313747593,1707658238182,-154.8915759,0.00012893,2]
[313747594,1707658238192,-2090.69924866,0.00012901,2]
[313747595,1707658238204,-8589.90652454,0.00012901,2]
[313747597,1707658238213,-14.27708162,0.00013381,2]
[313747599,1707658238225,-232.81645678,0.00013381,2]
[313747601,1707658238235,-309.20751776,0.00013517,2]
[313747602,1707658238245,-385.25695482,0.00013518,2]
[313747627,1707658241229,-2596.03862855,0.00013518,2]
[313747628,1707658241240,-2822.93898739,0.00013518,2]
[313747630,1707658241252,-2465.74508165,0.00013518,2]
[313747631,1707658241305,-2730.83329114,0.00013518,2]
[313747663,1707658243074,-907.62073107,0.00013518,2]
[313747666,1707658243132,-668.34686661,0.00013518,2]
[313747668,1707658243144,-268.24199987,0.00013518,2]
[313747707,1707658245968,-614.4664677,0.00013518,2]
[313747803,1707659438303,-154.90705577,0.00011949,2]
[313747805,1707659438314,-906.8614183,0.0001195,2]
[313747807,1707659438323,-154.90705577,0.0001195,2]
[313747809,1707659438333,-154.90705577,0.00011951,2]
[313747812,1707659438342,-2156.43453064,0.00011951,2]
[313747814,1707659438355,-3957.01026926,0.00011951,2]
[313747816,1707659438365,-228.95761572,0.00011952,2]
[313747818,1707659438374,-368.71575612,0.00011952,2]
[313747820,1707659438386,-168.95341932,0.00011952,2]
[313747822,1707659438396,-167.28021195,0.00011953,2]
[313747824,1707659438405,-663.68005033,0.00011953,2]
[313747849,1707659438633,-14056.62021695,0.00011953,2]
[313747851,1707659438645,-864.15051713,0.00011953,2]
[313747854,1707659438657,-3383.94527581,0.00011953,2]
[313747856,1707659438666,-618.75965176,0.00011954,2]
[313747922,1707659441459,-7368.68152951,0.00011954,2]
[313747923,1707659441468,-162.21176964,0.00011961,2]
[313747924,1707659441477,-4351.78489748,0.00012088,2]
[313747925,1707659441516,-20548.21510252,0.00012088,2]
[313747926,1707659441527,-200.0,0.00013151,2]
[313747927,1707659441536,-610.12555724,0.00013188,2]
[313747928,1707659441546,-535.79408158,0.00013188,2]
[313747929,1707659441557,-5283.53056006,0.00013188,2]
[313747930,1707659441566,-563.52557582,0.00013189,2]
[313747931,1707659441575,-200.0,0.00013383,2]
[313747932,1707659441586,-200.0,0.00013383,2]
[313747933,1707659441597,-200.0,0.00013383,2]
[313747934,1707659441607,-200.0,0.00013383,2]
[313747935,1707659441617,-200.0,0.00013383,2]
[313747936,1707659441778,-200.0,0.00013383,2]
[313747937,1707659441794,-200.0,0.00013383,2]
[313747938,1707659441803,-200.0,0.00013383,2]
[313747939,1707659441813,-201.67865,0.00013383,2]
[313747940,1707659441825,-166.88701004,0.00013516,2]
[313747941,1707659441835,-718.30431836,0.00013516,2]
[313747942,1707659441846,-268.52915263,0.00013517,2]
[313747943,1707659441856,-293.82389832,0.00013517,2]
[313747944,1707659441866,-260.491648,0.00013699,2]
[313747945,1707659441876,-280.0,0.00014466,2]
[313747946,1707659441885,-15248.86364807,0.00015,2]
[313747958,1707659443187,-6898.04199038,0.00015,2]
[313747995,1707659446193,-17040.3236319,0.00015,2]
[313747997,1707659446206,-1194.22671815,0.00015,2]
[313748120,1707660632328,-913.72917389,0.00012,2]
[313748121,1707660632337,-537.66917544,0.00012476,2]
[313748122,1707660632346,-154.92253873,0.00012477,2]
[313748124,1707660632356,-1855.31720148,0.00012479,2]
[313748126,1707660632368,-1891.12810283,0.00012479,2]
[313748127,1707660632377,-945.06147467,0.0001248,2]
[313748187,1707660638524,-23954.93852533,0.0001248,2]
[313748189,1707660638534,-10396.1369271,0.00013265,2]
[313748191,1707660638543,-154.98450155,0.00013518,2]
[313748193,1707660638553,-257.206764,0.00013699,2]
[313748195,1707660638563,-200.0,0.00013727,2]
[313748197,1707660638573,-241.36642762,0.00013798,2]
[313748199,1707660638582,-2999.16355301,0.00014996,2]
[313748201,1707660638591,-155.06194733,0.00014997,2]
[313748203,1707660638601,-4618.49021759,0.00014997,2]
[313748205,1707660638609,-155.16270993,0.00014998,2]
[313748207,1707660638618,-454.47444014,0.00014998,2]
[313748209,1707660638628,-504.12086389,0.00014999,2]
[313748211,1707660638638,-19782.5440115,0.00015,2]
[313748213,1707660638647,-280.0,0.000151,2]
[313748215,1707660638656,-155.03875027,0.00015339,2]
[313748217,1707660638666,-999.03034213,0.00015863,2]
[313748219,1707660638675,-273.40309853,0.000165,2]
[313748221,1707660638684,-391.0,0.0001661,2]
[313748223,1707660638693,-355.0927635,0.00017205,2]
[313748225,1707660638702,-181.49890856,0.00017526,2]
[313748227,1707660638711,-241.36642761,0.00017527,2]
[313748229,1707660638721,-462.50632125,0.00017625,2]
[313748231,1707660638731,-731.7134433,0.00017625,2]
[313748233,1707660638742,-154.98450155,0.00017625,2]
[313748235,1707660638752,-176.00454695,0.00017625,2]
[313748237,1707660638766,-156.77930405,0.00017625,2]
[313748239,1707660638775,-262.66378232,0.00017625,2]
[313748241,1707660638784,-1407.5312618,0.00017625,2]
[313748243,1707660638793,-6635.97513905,0.00017626,2]
[313748245,1707660638803,-356.22593592,0.00017626,2]
[313748247,1707660638812,-4388.76659921,0.00017626,2]
[313748249,1707660638821,-151.0,0.00017626,2]
[313748251,1707660638830,-151.0,0.00017626,2]
[313748253,1707660638840,-154.166073,0.00017626,2]
[313748255,1707660638849,-5451.3614562,0.00017627,2]
[313748348,1707660645000,-537.66917544,0.00017626,2]
[313748349,1707660645010,-2005.00082456,0.00017627,2]
[313748430,1707660646437,-15079.99999951,0.00017627,2]
[313748437,1707660962146,154.90705577,0.00016479,3]
[313748451,1707661311825,-162.539672,0.00032877,120]
[313748452,1707661311849,-4331.15002731,0.00034898,120]
[313748453,1707661311963,-162.539672,0.00034898,120]
[313748454,1707661311989,-193.786966,0.00035,120]
[313748455,1707661312016,-43.673362,0.00037,120]
[313748456,1707661312234,-356.326638,0.00037,120]
[313748457,1707661312258,-1495.81672835,0.00038,120]
[313748458,1707661312283,-5060.37996834,0.0003868,120]
[313748485,1707661546098,162.539672,0.00032877,120]
[313748486,1707661565174,31.247294,0.00021,120]
[313748487,1707661565225,210.18797103,0.00021,120]
[313748551,1707661832530,-154.93802479,0.00015835,2]
[313748553,1707661832540,-537.66917544,0.00015836,2]
[313748554,1707661832549,-181.02482076,0.00015864,2]
[313748556,1707661832559,-3456.93432638,0.00015884,2]
[313748626,1707661838770,-651.90051268,0.00015884,2]
[313748628,1707661838781,-395.03622612,0.00015884,2]
[313748630,1707661838793,-1439.13,0.00015884,2]
[313748770,1707661841788,-12586.4629999,0.00015884,2]
[313748771,1707661841800,-539.25681353,0.00015884,2]
[313748772,1707661841813,-3400.90104178,0.00015884,2]
[313748773,1707661841825,-2430.37807961,0.00015884,2]
[313748774,1707661841834,-395.14577,0.00015965,2]
[313748775,1707661841845,-200.0001,0.00016479,2]
[313748776,1707661841855,-273.40309853,0.000165,2]
[313748777,1707661841865,-1037.65784108,0.00017252,2]
[313748778,1707661841877,-1290.48383,0.00017252,2]
[313748779,1707661841886,-400.0,0.00017451,2]
[313748780,1707661841897,-200.0,0.00017451,2]
[313748781,1707661841907,-200.0,0.00017451,2]
[313748782,1707661841916,-200.0,0.00017451,2]
[313748783,1707661841926,-200.0,0.00017451,2]
[313748784,1707661841935,-200.0,0.00017451,2]
[313748785,1707661841946,-200.0,0.00017451,2]
[313748786,1707661841955,-201.67865,0.00017451,2]
[313748787,1707661841965,-200.0,0.00017471,2]
[313748788,1707661841974,-249.09583984,0.00017625,2]
[313748826,1707661846560,-154.93802479,0.00017624,3]
[313748827,1707661846570,-145.06197521,0.00017625,2]
[313748829,1707661846582,-17.70149952,0.00017625,2]
[313748831,1707661846591,-167.2204646,0.00017625,2]
[313748832,1707661846601,-305.23828561,0.00017625,2]
[313748889,1707662476369,154.93802479,0.00016141,3]
[313748981,1707663031695,-154.93802479,0.00014446,2]
[313748983,1707663031704,-537.66917544,0.00014446,2]
[313748985,1707663031714,-563.52557582,0.00014446,2]
[313748987,1707663031722,-718.5549009,0.00014447,2]
[313748990,1707663031742,-481.83793258,0.00014448,2]
[313748992,1707663031751,-176.03080422,0.00014449,2]
[313748994,1707663031761,-154.93802479,0.00014449,2]
[313748996,1707663031771,-1756.1880098,0.00014449,2]
[313749086,1707663037759,-3526.76945026,0.00014449,2]
[313749088,1707663037769,-2102.21255648,0.0001445,2]
[313749090,1707663037778,-24900.0,0.00014453,2]
[313749092,1707663037787,-311.97426,0.00014778,2]
[313749094,1707663037797,-200.0,0.00015896,2]
[313749096,1707663037806,-154.9690062,0.00016141,2]
[313749098,1707663037815,-154.93802479,0.00016141,2]
[313749100,1707663037824,-5268.43269371,0.00017254,2]
[313749102,1707663037834,-7984.69564419,0.00017257,2]
[313749104,1707663037843,-981.02470086,0.00017258,2]